fUSD/lending_fUSD_20240114
["ID","MTS","AMOUNT","RATE_DAILY","PERIOD"]
[311540261,1705205438921,-150.0,0.00022999,2]
[311540262,1705205438931,-150.0,0.00022999,2]
[311540263,1705205438941,-150.0,0.00022999,2]
[311540264,1705205438950,-150.0,0.00022999,2]
[311540265,1705205438959,-150.0,0.00022999,2]
[311540266,1705205438969,-150.0,0.00022999,2]
[311540267,1705205438979,-150.0,0.00022999,2]
[311540268,1705205438988,-150.0,0.00022999,2]
[311540269,1705205438998,-150.0,0.00022999,2]
[311540270,1705205439007,-150.0,0.00022999,2]
[311540271,1705205439017,-150.0,0.00022999,2]
[311540272,1705205439027,-150.0,0.00022999,2]
[311540273,1705205439037,-626669.77015641,0.00023,2]
[311540274,1705205439047,-2641619.1714873,0.00023,2]
[311540275,1705205439081,-2763.99533157,0.00023,2]
[311540276,1705205439093,-520.57073179,0.00023,2]
[311540277,1705205439105,-360.03818661,0.00023,2]
[311540278,1705205439152,-569.54633288,0.00023,2]
[311540279,1705205440870,-18282.57030443,0.00023,2]
[311540280,1705205440882,-1710.46949972,0.00023,2]
[311540281,1705205440893,-469.50000035,0.00023,2]
[311540282,1705205440905,-324.20640503,0.00023,2]
[311540283,1705205440916,-856.53874824,0.00023,2]
[311540284,1705205440928,-12813.65263694,0.00023,2]
[311540285,1705205440939,-2681.98083323,0.00023,2]
[311540286,1705205441586,-296.89989564,0.00023,2]
[311540287,1705205441643,-355.12996767,0.00023,2]
[311540288,1705205441703,-360.21,0.00023,2]
[311540289,1705205441762,-286.83677164,0.00023,2]
[311540290,1705205441776,-1466.08782232,0.00023,2]
[311540291,1705205441790,-4704.59744229,0.00023,2]
[311540292,1705205441802,-309.04679903,0.00023,2]
[311540293,1705205441826,-668.16681472,0.00023,2]
[311540296,1705205441837,-763.2575711,0.00023,2]
[311540310,1705205443448,-408.24,0.000226,2]
[311540311,1705205443457,-496.67,0.000226,2]
[311540312,1705205443467,-294.11,0.000226,2]
[311540313,1705205443477,-1314.81828165,0.00023,2]
[311540314,1705205443491,-2294.19001618,0.00023,2]
[311540315,1705205443506,-13212.14721273,0.00023,2]
[311540316,1705205443566,-330.23400921,0.00023,2]
[311540317,1705205443623,-150.0,0.000226,2]
[311540318,1705205443633,-615.64397858,0.00023,2]
[311540319,1705205443644,-787.5676464,0.00023,2]
[311540320,1705205443866,-4347.98,0.00023,2]
[311540324,1705205446508,-150.0,0.000226,2]
[311540325,1705205446518,-314.34,0.000226,2]
[311540326,1705205446529,-3002.35759647,0.00023,2]
[311540327,1705205446570,-274.86713658,0.00023,2]
[311540328,1705205446582,-6808.18696847,0.00023,2]
[311540329,1705205446626,-19065.71518989,0.00023,2]
[311540330,1705205446740,-1089.06822807,0.00023,2]
[311540331,1705205551808,485.20443745,0.0002209,3]
[311540332,1705205570846,196.56,0.00020595,2]
[311540333,1705205587190,1000.0,0.0002209,3]
[311540383,1705206029003,186.73,0.0002035,2]
[311540386,1705206122078,299.18539528,0.0002209,3]
[311540387,1705206166973,247.69,0.0002197,2]
[311540390,1705206211499,242.13227435,0.0002209,3]
[311540394,1705206339256,156.05,0.00022099,2]
[311540395,1705206346673,5173.0,0.00021918,2]
[311540396,1705206354148,-191.9741086,0.0003627,30]
[311540397,1705206354173,-1000.0,0.0003627,60]
[311540398,1705206354195,-1000.0,0.0003627,30]
[311540399,1705206354217,-1047.3839083,0.0003627,120]
[311540400,1705206354239,-2196.94052319,0.0003627,119]
[311540401,1705206354261,-159.33332837,0.0003627,30]
[311540402,1705206354283,-160.25208428,0.0003627,30]
[311540403,1705206354304,-160.87442723,0.0003627,60]
[311540404,1705206354325,-335.70750724,0.0003627,30]
[311540405,1705206354346,-3223.88643155,0.0003627,30]
[311540406,1705206354577,-500.0,0.0003627,120]
[311540407,1705206354603,-277.75763021,0.0003627,30]
[311540408,1705206354625,-300.0,0.0003627,58]
[311540409,1705206354648,-4654.65926159,0.0003627,65]
[311540410,1705206354669,-2000.0,0.0003627,30]
[311540411,1705206354691,-1000.0,0.0003627,30]
[311540412,1705206354713,-1677.68405705,0.0003627,120]
[311540413,1705206354734,-1029.27446043,0.0003627,120]
[311540414,1705206354756,-208.57684164,0.0003627,120]
[311540415,1705206354778,-1200.50478703,0.0003627,120]
[311540416,1705206354799,-1806.39576498,0.0003627,120]
[311540417,1705206354822,-492.79254281,0.0003627,120]
[311540418,1705206354843,-342.38017495,0.0003627,30]
[311540419,1705206354867,-236.87287569,0.0003627,120]
[311540420,1705206354889,-240.0,0.0003627,120]
[311540421,1705206354910,-184.09992797,0.0003627,120]
[311540422,1705206354932,-240.5288929,0.0003627,120]
[311540423,1705206354955,-1418.80037278,0.0003627,120]
[311540424,1705206354978,-152.49494159,0.0003627,30]
[311540425,1705206355003,-256.42247166,0.0003627,30]
[311540426,1705206355030,-204.42154555,0.0003627,30]
[311540427,1705206355062,-196.70961442,0.0003627,30]
[311540428,1705206355086,-176.00539654,0.0003627,120]
[311540429,1705206355107,-275.095601,0.0003627,120]
[311540430,1705206355129,-152.32544088,0.0003627,120]
[311540431,1705206355152,-166.97441995,0.0003627,30]
[311540432,1705206355174,-222.31218242,0.0003627,30]
[311540433,1705206355196,-932.88075023,0.0003627,120]
[311540434,1705206355220,-288.02790424,0.0003627,30]
[311540435,1705206355241,-167.0,0.0003627,120]
[311540436,1705206355264,-3992.12424655,0.0003627,60]
[311540437,1705206355286,-272.74478259,0.0003627,60]
[311540438,1705206355307,-298.9120023,0.0003627,60]
[311540439,1705206355328,-119371.40816976,0.0003627,30]
[311540440,1705206355350,-1904.919628,0.0003627,30]
[311540441,1705206355372,-305.301884,0.0003627,30]
[311540442,1705206355393,-1968.265822,0.0003627,30]
[311540443,1705206359134,-600.0,0.0003,31]
[311540444,1705206359170,-670.4146395,0.0003,30]
[311540445,1705206359207,-513.1014712,0.00030136,30]
[311540446,1705206359258,-561.73759652,0.00030136,30]
[311540447,1705206359391,-600.0,0.00031,32]
[311540448,1705206359417,-3294.68893664,0.000314,30]
[311540449,1705206359451,-600.0,0.00032,33]
[311540450,1705206359489,-151.0,0.00032424,120]
[311540451,1705206359524,-600.0,0.00033,34]
[311540452,1705206359554,-151.0,0.00033085,30]
[311540453,1705206359584,-600.0,0.00034,35]
[311540454,1705206359615,-2578.0,0.00034135,30]
[311540455,1705206359638,-2578.0,0.00034135,60]
[311540456,1705206359667,-150.0,0.00034539,120]
[311540457,1705206359691,-150.0,0.00034557,120]
[311540458,1705206359715,-150.0,0.00034763,120]
[311540459,1705206359746,-194.0,0.00035,120]
[311540460,1705206360044,-2255.0,0.00035,30]
[311540461,1705206360070,-1651.79538357,0.00035,30]
[311540462,1705206360099,-5533.89539719,0.00035,120]
[311540463,1705206360124,-600.0,0.00035,36]
[311540464,1705206360151,-150.5703186,0.00035135,30]
[311540465,1705206360177,-376.63110142,0.000355,30]
[311540466,1705206360202,-1050.0,0.00035616,32]
[311540467,1705206360227,-216.19120909,0.00035616,37]
[311540468,1705206360259,-150.0,0.00035814,120]
[311540469,1705206360289,-150.0,0.00035983,120]
[311540470,1705206360315,-600.0,0.00036,37]
[311540471,1705206360350,-6250.39707245,0.00036592,30]
[311540472,1705206360378,-150.0,0.00036968,120]
[311540473,1705206360405,-600.0,0.00037,38]
[311540474,1705206360428,-164.85865129,0.00037,30]
[311540475,1705206360453,-150.0,0.00037138,120]
[311540476,1705206360478,-2500.0,0.0003728,33]
[311540477,1705206360500,-150.0,0.00037313,120]
[311540478,1705206360530,-2500.0,0.000378,34]
[311540479,1705206360556,-159.0,0.0003797,120]
[311540480,1705206360579,-159.0,0.0003797,120]
[311540481,1705206360606,-150.5,0.0003797,120]
[311540482,1705206360628,-470.0,0.0003797,120]
[311540483,1705206360651,-470.0,0.0003797,120]
[311540484,1705206360673,-1144.0,0.0003797,120]
[311540485,1705206360696,-1144.0,0.0003797,120]
[311540486,1705206360718,-419.0,0.0003797,120]
[311540487,1705206360741,-419.0,0.0003797,120]
[311540488,1705206360763,-389.0,0.0003797,120]
[311540489,1705206360786,-389.0,0.0003797,120]
[311540490,1705206360808,-240.0,0.0003797,120]
[311540491,1705206360830,-240.0,0.0003797,120]
[311540492,1705206360852,-377.0,0.0003797,60]
[311540493,1705206360875,-377.0,0.0003797,60]
[311540494,1705206360904,-159.0,0.0003798,120]
[311540495,1705206360935,-159.0,0.0003798,120]
[311540496,1705206360958,-159.0,0.0003798,120]
[311540497,1705206360983,-167.91,0.0003798,120]
[311540498,1705206361006,-150.5,0.0003798,120]
[311540499,1705206361031,-470.0,0.0003798,120]
[311540500,1705206361175,-470.0,0.0003798,120]
[311540501,1705206361199,-470.0,0.0003798,120]
[311540502,1705206361223,-470.9,0.0003798,120]
[311540503,1705206361246,-1144.0,0.0003798,120]
[311540504,1705206361270,-1144.0,0.0003798,120]
[311540505,1705206361294,-1144.0,0.0003798,120]
[311540506,1705206361318,-1150.35,0.0003798,120]
[311540507,1705206361347,-419.0,0.0003798,120]
[311540508,1705206361372,-419.0,0.0003798,120]
[311540509,1705206361395,-419.0,0.0003798,120]
[311540510,1705206361420,-424.19,0.0003798,120]
[311540511,1705206361444,-389.0,0.0003798,120]
[311540512,1705206361469,-389.0,0.0003798,120]
[311540513,1705206361493,-389.0,0.0003798,120]
[311540514,1705206361519,-397.15,0.0003798,120]
[311540515,1705206361544,-240.0,0.0003798,120]
[311540516,1705206361568,-240.0,0.0003798,120]
[311540517,1705206361594,-240.0,0.0003798,120]
[311540518,1705206361617,-245.65,0.0003798,120]
[311540519,1705206361641,-377.0,0.0003798,60]
[311540520,1705206361665,-377.0,0.0003798,60]
[311540521,1705206361688,-377.0,0.0003798,60]
[311540522,1705206361712,-382.15,0.0003798,60]
[311540523,1705206361736,-166.45,0.0003798,120]
[311540524,1705206361760,-159.0,0.0003799,120]
[311540525,1705206361785,-159.0,0.0003799,120]
[311540526,1705206361809,-159.0,0.0003799,120]
[311540527,1705206361833,-159.0,0.0003799,120]
[311540528,1705206361858,-282.39,0.0003799,120]
[311540529,1705206361881,-150.5,0.0003799,120]
[311540530,1705206361906,-470.0,0.0003799,120]
[311540531,1705206361930,-153.65,0.0003799,120]
[311540532,1705206361956,-470.0,0.0003799,120]
[311540533,1705206361982,-470.0,0.0003799,120]
[311540534,1705206362008,-470.0,0.0003799,120]
[311540535,1705206362031,-1144.0,0.0003799,120]
[311540536,1705206362055,-1144.0,0.0003799,120]
[311540537,1705206362081,-1144.0,0.0003799,120]
[311540538,1705206362104,-1144.0,0.0003799,120]
[311540539,1705206362128,-419.0,0.0003799,120]
[311540540,1705206362154,-419.0,0.0003799,120]
[311540541,1705206362178,-419.0,0.0003799,120]
[311540542,1705206362202,-419.0,0.0003799,120]
[311540543,1705206362226,-389.0,0.0003799,120]
[311540544,1705206362249,-389.0,0.0003799,120]
[311540545,1705206362272,-389.0,0.0003799,120]
[311540546,1705206362296,-389.0,0.0003799,120]
[311540547,1705206362318,-240.0,0.0003799,120]
[311540548,1705206362342,-240.0,0.0003799,120]
[311540549,1705206362365,-240.0,0.0003799,120]
[311540550,1705206362387,-240.0,0.0003799,120]
[311540551,1705206362409,-377.0,0.0003799,60]
[311540552,1705206362432,-377.0,0.0003799,60]
[311540553,1705206362454,-377.0,0.0003799,60]
[311540554,1705206362476,-377.0,0.0003799,60]
[311540555,1705206362501,-150.5,0.0003799,120]
[311540556,1705206362524,-150.0,0.00037994,120]
[311540557,1705206362551,-600.0,0.00038,39]
[311540558,1705206362586,-1004.80171407,0.00038356,120]
[311540559,1705206362807,-150.0,0.00038385,120]
[311540560,1705206362834,-150.0,0.0003851,120]
[311540561,1705206362860,-3731.62448579,0.000388,35]
[311540562,1705206362881,-503.84657486,0.000388,30]
[311540563,1705206362906,-50000.0,0.00038826,30]
[311540564,1705206362929,-50000.0,0.00038826,30]
[311540565,1705206362953,-50000.0,0.00038826,30]
[311540566,1705206362979,-169.53355484,0.00039,40]
[311540567,1705206363001,-12193.0,0.00039,33]
[311540568,1705206363023,-600.0,0.00039,40]
[311540569,1705206363045,-1443.84466462,0.00039,30]
[311540570,1705206363068,-220.54343603,0.00039,30]
[311540571,1705206363090,-2167.0,0.00039,30]
[311540572,1705206363112,-2199.66617194,0.00039,30]
[311540573,1705206363136,-1500.0,0.0003917,32]
[311540574,1705206363159,-150.0,0.00039177,120]
[311540575,1705206363188,-150.0,0.00039528,120]
[311540576,1705206363212,-2500.0,0.000397,43]
[311540577,1705206363234,-4000.0,0.00039726,30]
[311540578,1705206363257,-2500.0,0.000398,40]
[311540579,1705206363281,-5000.0,0.00039824,31]
[311540580,1705206363310,-85997.04693664,0.0004,30]
[311540581,1705206363334,-2963.72503177,0.0004,33]
[311540582,1705206363356,-350.0,0.0004,120]
[311540583,1705206363378,-206.35291381,0.0004,30]
[311540584,1705206363401,-206.45036788,0.0004,120]
[311540585,1705206363422,-949.33834088,0.0004,120]
[311540586,1705206363444,-2916.92528096,0.0004,30]
[311540587,1705206363466,-400.0,0.0004,120]
[311540588,1705206363488,-1165.7007565,0.0004,30]
[311540589,1705206363510,-598.0,0.0004,120]
[311540590,1705206363531,-1600.0,0.0004,30]
[311540591,1705206363556,-306.0,0.0004,30]
[311540592,1705206363579,-1230.07506907,0.0004,60]
[311540593,1705206363601,-9933.23385489,0.0004,120]
[311540594,1705206363623,-1640.98266196,0.0004,120]
[311540595,1705206363645,-600.0,0.0004,41]
[311540596,1705206363667,-2427.18612707,0.0004,30]
[311540597,1705206363690,-194.98259791,0.0004,30]
[311540598,1705206363713,-786.1639794,0.0004,30]
[311540599,1705206363736,-294.17784989,0.0004,120]
[311540600,1705206363758,-160.95054221,0.0004,30]
[311540601,1705206363779,-93307.59873537,0.0004,30]
[311540602,1705206363801,-10000.0,0.0004,60]
[311540603,1705206363824,-2000.0,0.0004,30]
[311540604,1705206363846,-2000.0,0.0004,30]
[311540605,1705206363869,-2000.0,0.0004,30]
[311540606,1705206363891,-2000.0,0.0004,30]
[311540607,1705206363912,-2000.0,0.0004,30]
[311540608,1705206363935,-1481.0,0.0004,30]
[311540609,1705206363958,-1013.0,0.0004,120]
[311540610,1705206363980,-30398.66413028,0.0004,30]
[311540611,1705206364001,-550.0,0.0004,30]
[311540612,1705206364023,-153.95627912,0.0004,30]
[311540613,1705206364045,-195.15705333,0.0004,30]
[311540614,1705206364068,-1000.0,0.0004,30]
[311540615,1705206364091,-1000.0,0.0004,30]
[311540616,1705206364113,-1000.0,0.0004,30]
[311540617,1705206364135,-1000.0,0.0004,30]
[311540618,1705206364157,-1000.0,0.0004,30]
[311540619,1705206364179,-288.01885333,0.0004,30]
[311540620,1705206364201,-152.0,0.0004,30]
[311540621,1705206364223,-987.52046579,0.0004,30]
[311540622,1705206364248,-24094.4448635,0.0004,30]
[311540623,1705206364271,-28852.79510533,0.0004,30]
[311540624,1705206364296,-2707.08013472,0.0004,30]
[311540625,1705206364320,-23145.53515184,0.0004,30]
[311540626,1705206364345,-30237.59245354,0.0004,30]
[311540627,1705206364370,-1381.02965254,0.0004,30]
[311540628,1705206364395,-26692.61877767,0.0004,30]
[311540629,1705206364421,-64638.26045428,0.0004,30]
[311540630,1705206364445,-7182.02893936,0.0004,30]
[311540631,1705206364470,-5766.95605927,0.0004,30]
[311540632,1705206364493,-2361.49366395,0.0004,30]
[311540633,1705206364517,-20190.77082679,0.0004,30]
[311540634,1705206364542,-12901.50222558,0.0004,30]
[311540635,1705206364565,-1961.11474838,0.0004,30]
[311540636,1705206364591,-16767.53109865,0.0004,30]
[311540637,1705206364617,-13723.69250631,0.0004,30]
[311540638,1705206364641,-6263.21705426,0.0004,30]
[311540639,1705206364665,-788.70035094,0.00040024,30]
[311540640,1705206364687,-182.25003522,0.00040042,30]
[311540641,1705206364709,-193.73671226,0.00040046,30]
[311540642,1705206364731,-158.46488988,0.00040051,30]
[311540643,1705206364754,-1195.9736204,0.00040067,30]
[311540644,1705206364777,-22422.0,0.00040128,30]
[311540645,1705206364800,-960.0,0.00040128,30]
[311540646,1705206364822,-150.24382056,0.00040138,30]
[311540647,1705206364845,-154.53853969,0.00040142,30]
[311540648,1705206364869,-463.01679553,0.00040159,30]
[311540649,1705206364891,-157.28338151,0.00040161,30]
[311540650,1705206364912,-157.28338151,0.00040171,30]
[311540651,1705206364935,-157.28338151,0.00040188,30]
[311540652,1705206364957,-150.24382056,0.00040201,30]
[311540653,1705206364978,-155.93501535,0.00040206,30]
[311540654,1705206365000,-374.58164917,0.00040214,30]
[311540655,1705206365023,-168.64539598,0.00040219,30]
[311540656,1705206365048,-175.08860955,0.00040221,30]
[311540657,1705206365074,-161.57543843,0.00040222,30]
[311540658,1705206365106,-374.58164917,0.00040227,30]
[311540659,1705206365131,-152.79566131,0.00040252,30]
[311540660,1705206365156,-155.88867443,0.00040264,30]
[311540661,1705206365182,-182.25003522,0.00040279,30]
[311540662,1705206365379,-152.79566131,0.00040288,30]
[311540663,1705206365402,-182.25003522,0.0004029,30]
[311540664,1705206365425,-151.17119292,0.00040297,30]
[311540665,1705206365449,-374.58164917,0.00040299,30]
[311540666,1705206365472,-158.46488988,0.00040322,30]
[311540667,1705206365495,-168.64539598,0.00040327,30]
[311540668,1705206365519,-193.73671226,0.00040341,30]
[311540669,1705206365542,-152.79566131,0.00040355,30]
[311540670,1705206365565,-151.87,0.00040368,60]
[311540671,1705206365589,-157.83,0.00040368,60]
[311540672,1705206365612,-463.01679553,0.00040388,30]
[311540673,1705206365635,-182.25003522,0.00040398,30]
[311540674,1705206365662,-463.01679553,0.00040402,30]
[311540675,1705206365684,-1195.9736204,0.00040418,30]
[311540676,1705206365707,-374.58164917,0.00040428,30]
[311540677,1705206365731,-463.01679553,0.00040434,30]
[311540678,1705206365753,-152.79566131,0.00040474,30]
[311540679,1705206365776,-158.46488988,0.0004048,30]
[311540680,1705206365800,-155.88867443,0.00040507,30]
[311540681,1705206365823,-150.24382056,0.00040508,30]
[311540682,1705206365849,-788.70035094,0.00040532,30]
[311540683,1705206365872,-22422.0,0.00040542,30]
[311540684,1705206365895,-960.0,0.00040542,30]
[311540685,1705206365917,-161.3533906,0.00040551,30]
[311540686,1705206365940,-157.28338151,0.00040553,30]
[311540687,1705206365962,-156.06596588,0.00040556,30]
[311540688,1705206365986,-155.88867443,0.00040592,30]
[311540689,1705206366009,-153.75176476,0.00040595,30]
[311540690,1705206366033,-150.24382056,0.00040609,30]
[311540691,1705206366056,-150.24382056,0.0004061,30]
[311540692,1705206366082,-160.62772287,0.0004067,30]
[311540693,1705206366106,-151.17119292,0.00040686,30]
[311540694,1705206366130,-168.64539598,0.00040703,30]
[311540695,1705206366154,-374.58164917,0.00040705,30]
[311540696,1705206366178,-167.23052704,0.00040732,30]
[311540697,1705206366202,-155.93501539,0.00040743,30]
[311540698,1705206366227,-374.58164917,0.00040743,30]
[311540699,1705206366251,-156.06596588,0.0004077,30]
[311540700,1705206366275,-153.75176476,0.00040789,30]
[311540701,1705206366298,-2974.62901,0.00040798,32]
[311540702,1705206366322,-2500.0,0.000408,55]
[311540703,1705206366347,-161.35339062,0.00040827,30]
[311540704,1705206366370,-374.58164917,0.00040829,30]
[311540705,1705206366394,-1195.9736204,0.0004083,30]
[311540706,1705206366418,-1195.9736204,0.00040845,30]
[311540707,1705206366442,-374.58164917,0.00040849,30]
[311540708,1705206366466,-150.0,0.0004086,120]
[311540709,1705206366490,-158.46488988,0.00040875,30]
[311540710,1705206366515,-2824.78207204,0.00040894,31]
[311540711,1705206366540,-788.70035094,0.00040895,30]
[311540712,1705206366563,-159.34840255,0.00040896,30]
[311540713,1705206366589,-788.70035094,0.00040897,30]
[311540714,1705206366614,-788.70035094,0.00040912,30]
[311540715,1705206366637,-156.35152316,0.00040913,30]
[311540716,1705206366660,-150.24382056,0.00040916,30]
[311540717,1705206366684,-374.58164917,0.00040928,30]
[311540718,1705206366707,-168.64539598,0.00040938,30]
[311540719,1705206366730,-22422.0,0.00040955,30]
[311540720,1705206366753,-960.0,0.00040955,30]
[311540721,1705206366775,-1195.9736204,0.00040956,30]
[311540722,1705206366797,-400.0,0.00040959,120]
[311540723,1705206366821,-155.88867443,0.00040965,30]
[311540724,1705206366845,-168.64539598,0.00040974,30]
[311540725,1705206366868,-788.70035094,0.0004098,30]
[311540726,1705206366890,-4015.67311361,0.00040999,31]
[311540727,1705206366913,-2500.0,0.00041,60]
[311540728,1705206366935,-1000.0,0.00041,120]
[311540729,1705206366958,-300.0,0.00041,42]
[311540730,1705206366980,-2041.0,0.00041,90]
[311540731,1705206367002,-1092.0,0.00041,90]
[311540732,1705206367026,-10038.3964894,0.00041,120]
[311540733,1705206367048,-425.33243432,0.00041,30]
[311540734,1705206367072,-408.0,0.00041,30]
[311540735,1705206367098,-2988.0,0.00041,120]
[311540736,1705206367124,-350.0,0.00041014,120]
[311540737,1705206367151,-788.70035094,0.00041036,30]
[311540738,1705206367179,-168.64539598,0.00041054,30]
[311540739,1705206367204,-182.25003522,0.00041073,30]
[311540740,1705206367229,-156.06596588,0.00041077,30]
[311540741,1705206367255,-500.0,0.00041095,30]
[311540742,1705206367280,-574.99538296,0.00041095,30]
[311540743,1705206372623,150.0,0.00041095,30]
[311540744,1705206475253,207.02,0.00020052,2]
[311540745,1705206572976,200.0,0.00021945,2]
[311540746,1705206605152,231.17,0.00021941,2]
[311540768,1705206631520,-160.83274523,0.00022245,2]
[311540769,1705206631530,-800.0,0.00022246,2]
[311540770,1705206631540,-71.22408428,0.00022298,2]
[311540771,1705206631552,-228.77591572,0.00022298,2]
[311540772,1705206631562,-2026.31240431,0.00022299,2]
[311540773,1705206631688,-1120.32492377,0.00022299,2]
[311540774,1705206631700,-7620.35121183,0.00022299,2]
[311540775,1705206631711,-3358.67127474,0.00022299,2]
[311540776,1705206631801,-3909.26599321,0.00022299,2]
[311540777,1705206631810,-200.0,0.000223,8]
[311540778,1705206631820,-207.02,0.00022316,2]
[311540779,1705206631829,-500.0,0.000224,8]
[311540780,1705206631839,-700.0,0.000225,8]
[311540781,1705206631848,-150.0,0.0002252,2]
[311540782,1705206631858,-150.0,0.0002257,2]
[311540783,1705206631867,-392.75,0.00022586,2]
[311540784,1705206631876,-2859.12,0.00022586,2]
[311540785,1705206631886,-408.24,0.000226,2]
[311540786,1705206631895,-150.0,0.000226,2]
[311540787,1705206631904,-314.34,0.000226,2]
[311540788,1705206631913,-150.0,0.000226,2]
[311540789,1705206631922,-294.11,0.000226,2]
[311540790,1705206631931,-150.0,0.000226,2]
[311540791,1705206631940,-408.24,0.000226,2]
[311540792,1705206631950,-314.34,0.000226,2]
[311540793,1705206631959,-294.11,0.000226,2]
[311540794,1705206631968,-150.0,0.000226,2]
[311540795,1705206631976,-314.34,0.000226,2]
[311540796,1705206631987,-408.24,0.000226,2]
[311540797,1705206631998,-150.0,0.000226,2]
[311540798,1705206632007,-294.11,0.000226,2]
[311540799,1705206632016,-545.13,0.000226,2]
[311540800,1705206632027,-408.24,0.000226,2]
[311540801,1705206632037,-150.0,0.000226,2]
[311540802,1705206632047,-314.34,0.000226,2]
[311540803,1705206632056,-294.11,0.000226,2]
[311540804,1705206632066,-408.24,0.000226,2]
[311540805,1705206632075,-150.0,0.000226,2]
[311540806,1705206632087,-294.11,0.000226,2]
[311540807,1705206632096,-150.0,0.000226,2]
[311540808,1705206632105,-314.34,0.000226,2]
[311540809,1705206632114,-1000.0,0.000226,8]
[311540810,1705206632123,-150.0,0.000227,2]
[311540811,1705206632133,-150.0,0.000227,2]
[311540812,1705206632142,-408.24,0.000227,2]
[311540813,1705206632151,-314.34,0.000227,2]
[311540814,1705206632160,-294.11,0.000227,2]
[311540815,1705206632170,-1200.0,0.000227,8]
[311540816,1705206632179,-200.0,0.000228,8]
[311540817,1705206632189,-13521.9137,0.00022897,2]
[311540818,1705206632198,-1309.4024,0.00022899,2]
[311540819,1705206632207,-188.9412,0.00022899,2]
[311540820,1705206632217,-15852.8892,0.00022899,2]
[311540821,1705206632226,-775.71717278,0.000229,2]
[311540822,1705206632235,-9999.99,0.000229,2]
[311540823,1705206632244,-250.0,0.000229,2]
[311540824,1705206632254,-335.5,0.000229,2]
[311540825,1705206632263,-150.99,0.000229,2]
[311540826,1705206632273,-1159.39,0.000229,2]
[311540827,1705206632282,-16405.36,0.000229,2]
[311540828,1705206632291,-150.99,0.000229,2]
[311540829,1705206632300,-561.64297441,0.000229,2]
[311540830,1705206632310,-200.0,0.000229,8]
[311540831,1705206632319,-231.17,0.00022919,2]
[311540832,1705206632328,-482.81075849,0.00022997,3]
[311540833,1705206632338,-33127.33294483,0.00022997,2]
[311540834,1705206632347,-499.99,0.00022997,2]
[311540835,1705206632356,-3303.60418818,0.00022998,2]
[311540836,1705206632365,-2087.85549695,0.00022998,2]
[311540837,1705206632383,-2815.61762101,0.00022998,2]
[311540838,1705206632392,-2438.58185024,0.00022998,2]
[311540839,1705206632404,-577.94426838,0.00022998,2]
[311540840,1705206632415,-319.354,0.00022998,2]
[311540849,1705206638812,-199.45938796,0.00022899,2]
[311540850,1705206638821,-883.53935498,0.00022998,2]
[311540851,1705206638881,-4319.79566198,0.00022998,2]
[311540852,1705206638890,-406.91028586,0.00022998,2]
[311540853,1705206638899,-155.0,0.00022998,2]
[311540854,1705206638908,-370.12902797,0.00022998,2]
[311540855,1705206638918,-388.71478808,0.00022998,2]
[311540856,1705206638927,-2161.32496629,0.00022998,2]
[311540857,1705206638936,-175.97386613,0.00022998,2]
[311540858,1705206638945,-243.20354855,0.00022998,2]
[311540859,1705206638953,-156.39311007,0.00022998,2]
[311540860,1705206638962,-213.43819194,0.00022998,2]
[311540861,1705206638971,-783.83224883,0.00022998,2]
[311540862,1705206638980,-288.75336219,0.00022998,2]
[311540863,1705206638989,-494.59956337,0.00022998,2]